Cogmind - Beta 12 @@@ ROGUE MODE // 2023.07.29 @ 00:35:21 Player: Raix Result: Destroyed by G-67 Veteran with Plasma Rifle Performance ------------- Evolutions (4) 2000 Regions Visited (8) 1600 Robots Destroyed (33) 165 Value Destroyed (1010) 1010 Prototype IDs (4) 80 Alien Tech Used (0) 0 Bonus (545) 545 TOTAL SCORE: 5400 Bonus ------- Follower Combat Kills 345 Entered Garrisons 200 Cogmind --------- Core Integrity 0/850 Matter 33/300 Energy 99/100 System Corruption 9% Temperature Cool (12) Movement Core (50) Location -6/Garrison Parts ------- > --- POWER (2) -------- (None) > --- PROPULSION (4) --- (None) > --- UTILITY (5) ------ Visual Processing Unit Enhanced Optical Array Authchip [R/NC] Authchip [R/Combat] Authchip [R/Combat] > --- WEAPON (4) ------- (None) > --- INVENTORY (5) ---- Angular Momentum Engine Aerolev Unit Improved Gravmag System Huge Storage Unit Coil Gun Peak State ------------ > --- POWER ------------ Light Nuclear Core > --- PROPULSION ------- Biomechanical Wings Biomechanical Wings Biomechanical Wings Biomechanical Wings > --- UTILITY ---------- Visual Processing Unit Advanced Visual Processing Unit Weapon Cycler Weapon Cycler Transmission Jammer > --- WEAPON ----------- (None) > --- INVENTORY -------- Micro Nuclear Core Huge Storage Unit Weapon Cycler Hypervelocity Gauss Cannon [Rating: 45] Favorites ----------- Power Deuterium Engine Engine Deuterium Engine Power Core Light Nuclear Core Propulsion Carbon-fiber Leg Leg Carbon-fiber Leg Hover Unit Aerolev Unit Flight Unit Biomechanical Wings Utility Advanced Visual Processing Unit Device Improved Heat Sink Storage Large Storage Unit Processor Advanced Visual Processing Unit Hackware Authchip [R/Combat] Weapon Beam Rifle Energy Gun Beam Rifle Ballistic Gun Heavy Assault Rifle Ballistic Cannon Assault Cannon Launcher Heavy Rocket Launcher Build | -11 -10 -10 -9 -8 -8 -7 -6 -6 ------- Run | Jun Mat Min Mat Mat Sto Fac Fac Gar Slots Evolved 8 | . . . 2 2 . 2 2 . Power 1 | . . . . 1 . . . . Propulsion 2 | . . . 2 . . . . . Utility 3 | . . . . 1 . 2 . . Weapon 2 | . . . . . . . 2 . Parts Attached 77 | 1 . 6 . . 40 12 15 3 Power 16 | 1 . 1 . . 8 4 2 . Engine 10 | 1 . 1 . . 6 1 1 . Core 6 | . . . . . 2 3 1 . Reactor . | . . . . . . . . . Propulsion 24 | . . 3 . . 14 1 6 . Treads . | . . . . . . . . . Leg 16 | . . 1 . . 14 1 . . Wheel . | . . . . . . . . . Hover 2 | . . . . . . . 2 . Flight 6 | . . 2 . . . . 4 . Utility 18 | . . . . . 7 6 2 3 Device 9 | . . . . . 3 5 1 . Storage 1 | . . . . . 1 . . . Processor 5 | . . . . . 3 1 1 . Hackware 3 | . . . . . . . . 3 Protection . | . . . . . . . . . Artifact . | . . . . . . . . . Weapon 19 | . . 2 . . 11 1 5 . Energy Gun 7 | . . 1 . . 5 . 1 . Energy Cannon . | . . . . . . . . . Ballistic Gun 8 | . . 1 . . 6 . 1 . Ballistic Cannon 2 | . . . . . . 1 1 . Launcher 2 | . . . . . . . 2 . Special Weapon . | . . . . . . . . . Impact Weapon . | . . . . . . . . . Slashing Weapon . | . . . . . . . . . Piercing Weapon . | . . . . . . . . . Special Melee Weapon . | . . . . . . . . . Unidentified Prototypes 4 | . . . . . 1 . 3 . Parts Lost 37 | . . . 2 . 13 12 10 . Power 6 | . . . . . 3 2 1 . Propulsion 13 | . . . 1 . 5 5 2 . Utility 9 | . . . . . 2 2 5 . Weapon 9 | . . . 1 . 3 3 2 . Highest Loss Streak 12 | . . . 2 . 7 12 4 . To Critical Strikes 1 | . . . . . 1 . . . Average Slot Usage (%) 71 | . 14 64 24 . 85 75 36 42 Engine 9 | . 14 14 6 . 10 11 2 4 Core 1 | . . . . . 2 . . . Leg 24 | . . 6 . . 35 22 . . Flight 1 | . . 15 9 . . . 2 . Device 7 | . . . . . 6 13 9 . Storage 1 | . . . . . . 5 . . Processor 10 | . . . . . 12 7 14 13 Energy Gun 8 | . . 14 6 . 10 11 . . Ballistic Gun 4 | . . 14 1 . 6 . 1 4 Naked Turns 70 | . . . 30 32 8 . . . Heaviest Build 59 | 3 3 6 6 . 47 59 21 18 Greatest Support 60 | 3 3 10 8 3 60 60 18 18 Greatest Overweight (x) 9 | . . . 1 . . 9 1 . Average Overweight (x) . | . . . . . . . . . Largest Inventory Capacity 15 | 5 5 5 5 5 15 15 5 5 Average Capacity 6 | 5 5 5 5 5 5 13 5 5 Most Carried 9 | 5 4 5 5 5 6 9 5 5 Average Carried 4 | 3 4 2 4 5 3 6 3 1 Final Capacity 15 | 5 5 5 5 5 15 5 5 5 Final Carried 6 | 4 4 4 5 5 6 5 1 5 Class Distribution -------------------- 42% | Mutant 37% | Commander-Mutant 20% | Scavenger-Mutant Dominant Class ---------------- Mutant | -10/Materials Mutant | -10/Mines Mutant | -9/Materials Mutant | -8/Materials Commander-Mutant | -8/Storage Commander-Mutant | -7/Factory Mutant | -6/Factory Mutant | -6/Garrison Resources | -11 -10 -10 -9 -8 -8 -7 -6 -6 ----------- Run | Jun Mat Min Mat Mat Sto Fac Fac Gar Matter Collected 1161 | 210 . 67 . . 784 30 70 . Remotely . | . . . . . . . . . Salvage Created 1264 | . . 48 . . 1050 86 80 . Parts 68 | . . 4 . . 50 4 10 . Haulers Intercepted . | . . . . . . . . . Recyclers Shooed 3 | . . . . . 3 . . . Parts Field Recycled . | . . . . . . . . . Retrieved Matter . | . . . . . . . . . Parts Self-Destructed . | . . . . . . . . . Prevented . | . . . . . . . . . Kills | -11 -10 -10 -9 -8 -8 -7 -6 -6 ------- Run | Jun Mat Min Mat Mat Sto Fac Fac Gar Combat Hostiles Destroyed 23 | . . 3 . . 15 1 4 . Melee 1 | . . . . . . . 1 . Guns 18 | . . 3 . . 15 . . . Cannons 1 | . . . . . . 1 . . AOE 3 | . . . . . . . 3 . Classes Destroyed 9 | . . 1 . . 8 . . . Worker 3 | . . . . . 2 . 1 . Builder 3 | . . . . . 1 1 1 . Recycler 2 | . . . . . 2 . . . Watcher 2 | . . . . . 1 1 . . Swarmer 6 | . . 3 . . . . 3 . Grunt 7 | . . . . . 6 1 . . Brawler 1 | . . . . . 1 . . . Sentry 8 | . . . . . 7 . 1 . Hunter 1 | . . . . . 1 . . . Best Kill Streak 6 | . . 3 . . 6 1 3 . Combat Bots Only 3 | . . 3 . . 2 1 3 . Max Kills in Single Turn 2 | . . 1 . . 1 1 2 . Gunslinging . | . . . . . . . . . Exploded 2 | . . . . . . . 2 . Melee 1 | . . . . . . . 1 . Uniques/NPCs Destroyed . | . . . . . . . . . Combat | -11 -10 -10 -9 -8 -8 -7 -6 -6 -------- Run | Jun Mat Min Mat Mat Sto Fac Fac Gar Damage Taken 5263 | . 35 166 268 15 2031 1290 1350 108 Core 1799 | . 23 22 191 15 359 336 766 87 Absorbed by Shields . | . . . . . . . . . Core Remaining (%) 63 | 100 . 82 52 . 32 52 . . Volleys Fired 123 | . . 7 . . 98 10 8 . Largest 2 | . . 2 . . 2 2 2 . Hottest 121 | . . 70 . . 121 121 100 . Shots Fired 200 | . . 14 . . 155 20 11 . Gun 180 | . . 14 . . 155 11 . . Cannon 12 | . . . . . . 9 3 . Launcher 8 | . . . . . . . 8 . Special . | . . . . . . . . . Kinetic 144 | . . 7 . . 125 9 3 . Thermal 39 | . . 7 . . 21 11 . . Explosive 8 | . . . . . . . 8 . Electromagnetic 9 | . . . . . 9 . . . Robot Hit Streak 24 | . . 3 . . 24 3 3 . Robot Miss Streak 4 | . . 2 . . 4 4 3 . Penetration Max . | . . . . . . . . . Secondary Targets 1 | . . 1 . . . . . . Max Gunslinging Chain 1 | . . 1 . . . . . . Shots Hit Robots 141 | . . 9 . . 118 9 5 . Core Hits 68 | . 2 4 . . 43 4 15 . Critical Kills . | . . . . . . . . . Critical Parts Destroyed 1 | . . . . . 1 . . . Critical Strikes 4 | . . . . . 3 1 . . Burn 2 | . . . . . 2 . . . Destroy 1 | . . . . . 1 . . . Blast 1 | . . . . . . 1 . . Melee Attacks . | . . . . . . . . . Impact . | . . . . . . . . . Slashing . | . . . . . . . . . Piercing . | . . . . . . . . . Sneak Attacks . | . . . . . . . . . Combat Hostiles . | . . . . . . . . . Follow-up Attacks . | . . . . . . . . . Damage Inflicted 2920 | . 8 114 6 . 1936 285 571 . Guns 2085 | . . 114 . . 1831 140 . . Cannons 101 | . . . . . . 101 . . Explosions 560 | . . . . . 88 . 472 . Melee . | . . . . . . . . . Ramming 174 | . 8 . 6 . 17 44 99 . Kinetic 1663 | . . 52 . . 1510 101 . . Thermal 737 | . . 62 . . 369 140 166 . Explosive 306 | . . . . . . . 306 . Electromagnetic 40 | . . . . . 40 . . . Impact . | . . . . . . . . . Slashing . | . . . . . . . . . Piercing . | . . . . . . . . . Highest Corruption 9 | . . . 1 . 4 9 9 9 Average Corruption 4 | . . . 1 . 4 7 7 9 Corruption Purged . | . . . . . . . . . Corruption Blocked . | . . . . . . . . . Effects 34 | . . . 1 . 22 5 5 1 Message Errors 13 | . . . . . 10 2 . 1 Matter Fused 11 | . . . 1 . 6 2 2 . Heat Flow Errors 5 | . . . . . 2 1 2 . Energy Discharges 1 | . . . . . . . 1 . Parts Rejected 1 | . . . . . 1 . . . Parts Fused 1 | . . . . . 1 . . . Data Loss (minor) 1 | . . . . . 1 . . . Misfires 1 | . . . . . 1 . . . Overload Shots . | . . . . . . . . . Overflow Damage 83 | . . . . . . 5 78 . Projectiles 5 | . . . . . . 5 . . Explosions 75 | . . . . . . . 75 . Melee 3 | . . . . . . . 3 . Knockbacks 4 | . 1 . . . . 3 . . Impact 2 | . 1 . . . . 1 . . Kinetic 2 | . . . . . . 2 . . Secondary . | . . . . . . . . . Self-Inflicted Damage 120 | . 4 . 2 . 12 . 102 . Shots 2 | . . . . . 1 . 1 . Rammed 20 | . 2 . 2 1 . . 15 . Targets Rammed 31 | . 2 . 2 1 7 4 15 . Kicked 11 | . . . . . 7 4 . . Crushed . | . . . . . . . . . Highest Temperature 526 | . . 110 . . 526 446 134 . Average Temperature 145 | . . 52 . . 156 203 46 . Received Heat Transfer 1446 | . . . 78 9 882 276 180 21 Effects 11 | . . . . . 7 4 . . Shutdowns 5 | . . . . . 2 3 . . Energy Bleed 1 | . . . . . 1 . . . Interference 3 | . . . . . 3 . . . Damage (minor) 2 | . . . . . 1 1 . . Siege Activations . | . . . . . . . . . Robots Corrupted . | . . . . . . . . . Combat Hostiles . | . . . . . . . . . Parts Fried . | . . . . . . . . . Impact Corruptions 1 | . . . . . . . 1 . Robots Melted . | . . . . . . . . . Combat Hostiles . | . . . . . . . . . Parts Melted 7 | . . . . . 5 2 . . Heat Transferred 1434 | . . 185 . . 964 185 100 . Parts Sabotaged . | . . . . . . . . . Parts Stolen . | . . . . . . . . . Parts Stripped . | . . . . . . . . . Power Chain Reactions 1 | . . . . . 1 . . . Missiles Intercepted . | . . . . . . . . . Alert | -11 -10 -10 -9 -8 -8 -7 -6 -6 ------- Run | Jun Mat Min Mat Mat Sto Fac Fac Gar Peak Influence 380 | . 45 102 49 50 380 167 365 175 Initial 160 | . . 17 39 20 20 134 81 160 Average 161 | . 17 89 46 26 187 118 203 162 Maximum Alert Level 1 | . . . . . 1 . 1 . Low Security (%) 67 | 100 100 100 100 100 51 100 51 100 Level 1 32 | . . . . . 48 . 48 . Level 2 . | . . . . . . . . . Level 3 . | . . . . . . . . . Level 4 . | . . . . . . . . . Level 5 . | . . . . . . . . . High Security . | . . . . . . . . . Max Security . | . . . . . . . . . Squads Dispatched 12 | . 4 . . . 1 4 3 . Investigation 4 | . 1 . . . 1 1 1 . Extermination 2 | . . . . . . 1 1 . Reinforcement 6 | . 3 . . . . 2 1 . Assault . | . . . . . . . . . Garrison . | . . . . . . . . . Intercept . | . . . . . . . . . Searches Triggered . | . . . . . . . . . Construction Impeded 1 | . . . . . . 1 . . Haulers Reinforced . | . . . . . . . . . Active Scanning Responses . | . . . . . . . . . Cargo Convoy Interrupts . | . . . . . . . . . Stealth | -11 -10 -10 -9 -8 -8 -7 -6 -6 --------- Run | Jun Mat Min Mat Mat Sto Fac Fac Gar Distress Signals 4 | . 2 . . . 2 . . . Communications Jammed . | . . . . . . . . . Distress Signals . | . . . . . . . . . Times Spotted 93 | . 7 5 3 2 26 26 17 7 Peak Tracking Total 9 | . 9 3 3 3 4 9 5 7 Tactical Retreats 18 | . . . . . 4 7 7 . Traps | -11 -10 -10 -9 -8 -8 -7 -6 -6 ------- Run | Jun Mat Min Mat Mat Sto Fac Fac Gar Traps Triggered 8 | . 1 . 1 . 2 3 1 . Indirectly . | . . . . . . . . . Trap Hack Attempts . | . . . . . . . . . Triggered . | . . . . . . . . . Disarmed . | . . . . . . . . . Reprogrammed . | . . . . . . . . . Reused . | . . . . . . . . . Traps Extracted . | . . . . . . . . . Installed . | . . . . . . . . . Triggered . | . . . . . . . . . Machines | -11 -10 -10 -9 -8 -8 -7 -6 -6 ---------- Run | Jun Mat Min Mat Mat Sto Fac Fac Gar Machines Disabled 3 | . . . . . 1 . 2 . Max in Single Turn 2 | . . . . . 1 . 2 . Machines Repaired . | . . . . . . . . . Machines Sabotaged . | . . . . . . . . . Overloaded Fab Kills . | . . . . . . . . . Hacking | -11 -10 -10 -9 -8 -8 -7 -6 -6 --------- Run | Jun Mat Min Mat Mat Sto Fac Fac Gar Machines Accessed 9 | . . . . . 5 1 3 . Terminals 5 | . . . . . 4 1 . . Fabricators . | . . . . . . . . . Repair Stations 1 | . . . . . . . 1 . Recycling Units 2 | . . . . . 1 . 1 . Scanalyzers . | . . . . . . . . . Garrison Access 1 | . . . . . . . 1 . Total Hacks 23 | . . . . . 12 5 6 . Successful 8 | . . . . . 4 1 3 . Failed 15 | . . . . . 8 4 3 . Catastrophic 2 | . . . . . . . 2 . Database Lockouts . | . . . . . . . . . Manual . | . . . . . . . . . Terminals 16 | . . . . . 11 5 . . Fabricators . | . . . . . . . . . Repair Stations 2 | . . . . . . . 2 . Recycling Units 4 | . . . . . 1 . 3 . Scanalyzers . | . . . . . . . . . Garrison Access 1 | . . . . . . . 1 . Terminal Hacks 4 | . . . . . 3 1 . . Open Door 2 | . . . . . 2 . . . Open DSF 1 | . . . . . . 1 . . Branch Access Points 1 | . . . . . 1 . . . Fabricator Hacks . | . . . . . . . . . Repair Station Hacks . | . . . . . . . . . Recycling Unit Hacks 3 | . . . . . 1 . 2 . Retrieve Components 3 | . . . . . 1 . 2 . Scanalyzer . | . . . . . . . . . Garrison Access Hacks 1 | . . . . . . . 1 . Unlock Access 1 | . . . . . . . 1 . Unauthorized Hacks . | . . . . . . . . . Terminals . | . . . . . . . . . Fabricators . | . . . . . . . . . Repair Stations . | . . . . . . . . . Recycling Units . | . . . . . . . . . Scanalyzers . | . . . . . . . . . Garrison Access . | . . . . . . . . . Data Cores Recovered . | . . . . . . . . . Used . | . . . . . . . . . Hacking Detections 7 | . . . . . 3 1 3 . Full Trace Events 3 | . . . . . 1 1 1 . Feedback Events . | . . . . . . . . . Feedback Blocked . | . . . . . . . . . Robot Schematics Acquired . | . . . . . . . . . Robots Built . | . . . . . . . . . Authchips . | . . . . . . . . . Time . | . . . . . . . . . Total Robot Build Rating . | . . . . . . . . . Part Schematics Acquired . | . . . . . . . . . Parts Built . | . . . . . . . . . Authchips . | . . . . . . . . . Time . | . . . . . . . . . Total Part Build Rating . | . . . . . . . . . Parts Repaired . | . . . . . . . . . Time . | . . . . . . . . . Parts Recycled . | . . . . . . . . . Recycled Matter . | . . . . . . . . . Retrieved Matter . | . . . . . . . . . Retrieved Components 10 | . . . . . 9 . 1 . Parts Scanalyzed . | . . . . . . . . . Part Schematics Acquired . | . . . . . . . . . Parts Damaged . | . . . . . . . . . Bothacking | -11 -10 -10 -9 -8 -8 -7 -6 -6 ------------ Run | Jun Mat Min Mat Mat Sto Fac Fac Gar Used RIF Installer . | . . . . . . . . . Robots Hacked . | . . . . . . . . . Non-combat . | . . . . . . . . . Combat . | . . . . . . . . . Robot Hacks Applied . | . . . . . . . . . Relay Couplers Released . | . . . . . . . . . Fabnet Peak Effective % . | . . . . . . . . . Robots Rewired . | . . . . . . . . . Allies Hacked . | . . . . . . . . . Hacks Repelled . | . . . . . . . . . Allies | -11 -10 -10 -9 -8 -8 -7 -6 -6 -------- Run | Jun Mat Min Mat Mat Sto Fac Fac Gar Total Allies 10 | . . . . . 10 . . . Largest Group 10 | . . . . . 10 9 . . Highest-Rated Group 173 | . . . . . 173 157 . . Highest-Rated Ally 29 | . . . . . 29 29 . . Total Orders 8 | . . . . . . 8 . . EXPLORE 5 | . . . . . . 5 . . RETURN 3 | . . . . . . 3 . . Ally Attacks 90 | . . . . . 33 57 . . Total Damage 1218 | . . . . . 480 738 . . Kills 13 | . . . . . 6 7 . . Allies Corrupted . | . . . . . . . . . Allies Melted . | . . . . . . . . . Intel | -11 -10 -10 -9 -8 -8 -7 -6 -6 ------- Run | Jun Mat Min Mat Mat Sto Fac Fac Gar Robot Analysis Total . | . . . . . . . . . Derelict Logs Recovered . | . . . . . . . . . Drone Launches 7 | . . . . . . 7 . . Drone Recoveries 3 | . . . . . . 3 . . Exploration | -11 -10 -10 -9 -8 -8 -7 -6 -6 ------------- Run | Jun Mat Min Mat Mat Sto Fac Fac Gar Turns Passed 3349 | 34 72 86 82 32 1771 753 493 26 Spaces Moved 3134 | 50 139 47 133 60 1098 695 877 35 Core 900 | 50 139 . 56 60 14 255 321 5 Treads . | . . . . . . . . . Legs 1535 | . . 11 . . 1084 440 . . Wheels . | . . . . . . . . . Hover 386 | . . . . . . . 356 30 Flight 313 | . . 36 77 . . . 200 . Fastest Speed 34 | 50 50 37 37 50 50 50 34 50 Average Speed 84 | 50 50 56 58 50 119 97 47 50 Slowest Speed 500 | 50 50 120 120 50 120 500 106 51 Overloaded Moves . | . . . . . . . . . Propulsion Burnouts . | . . . . . . . . . Robots Hopped 3 | . . 1 . . . . 2 . Cave-ins Triggered . | . . . . . . . . . Exploration Rate (%) 27 | 3 45 10 17 10 91 28 31 11 Regions Visited 8 Branch Regions 2 Pre-discovered Areas . | . . . . . . . . . Known Exits Taken 1 | . . . . . . . 1 . Unknown Exits Taken 7 | 1 1 1 1 1 1 1 . . Scrap Searched . | . . . . . . . . . Spaces Dug . | . . . . . . . . . Terrain Destroyed 60 | . . . . . 7 . 53 . Melee . | . . . . . . . . . Projectile . | . . . . . . . . . AOE 60 | . . . . . 7 . 53 . Terrain Rammed . | . . . . . . . . . Walls Destroyed . | . . . . . . . . . Machines Disabled . | . . . . . . . . . Actions | -11 -10 -10 -9 -8 -8 -7 -6 -6 --------- Run | Jun Mat Min Mat Mat Sto Fac Fac Gar Total 3660 | 59 140 92 136 62 1427 752 947 45 Wait 136 | . . 26 1 . 97 7 5 . Move 3120 | 49 138 44 132 59 1097 694 872 35 Hop 3 | . . 1 . . . . 2 . Pick Up 101 | 7 . 6 1 1 51 14 18 3 Fast Attach . | . . . . . . . . . Attach 65 | 1 . 5 . . 31 10 15 3 Detach 8 | . . . . . . 3 1 4 Swap 12 | . . 1 . . 9 2 . . Drop 47 | 2 . 2 . 1 24 7 11 . Fire 123 | . . 7 . . 98 10 8 . Melee . | . . . . . . . . . Ram 20 | . 2 . 2 1 . . 15 . Kick 11 | . . . . . 7 4 . . Crush . | . . . . . . . . . Escape Stasis . | . . . . . . . . . Rewire 13 | . . . . . 13 . . . Trap . | . . . . . . . . . Miscellaneous 1 | . . . . . . 1 . . Route ------- -11/Junkyard -10/Materials -10/Mines -9/Materials -8/Materials -8/Storage (discovered 2 exits: *Fac / Rec) -7/Factory (discovered 2 exits: *Fac x2) -6/Factory -6/Garrison History --------- Turn | Location | Event 3 | -11/Junkyard | Discovered new exit (range 15) 35 | -11/Junkyard | Entered Materials 103 | -10/Materials | Discovered new exit (range 8) 107 | -10/Materials | Entered Mines 108 | -10/Mines | Assembled infested the area 110 | -10/Mines | Met a Derelict bent on vengeance 159 | -10/Mines | Discovered new exit (range 12) 193 | -10/Mines | Entered Materials 193 | -9/Materials | Evolved 2 slots: Propulsion x2 271 | -9/Materials | Discovered new exit (range 5) 275 | -9/Materials | Entered another Materials area 275 | -8/Materials | Evolved 2 slots: Power x1, Utility x1 301 | -8/Materials | Build established: Mutant 304 | -8/Materials | Discovered new exit (range 6) 307 | -8/Materials | Entered Storage 920 | -8/Storage | Build established: Scavenger-Mutant 1135 | -8/Storage | Core integrity fell below 50% 1181 | -8/Storage | Lost 7 parts (1p3n2u1w) 1319 | -8/Storage | Assisted by bots powering up and referring to "LRC-V3" 1621 | -8/Storage | Build established: Commander-Mutant 1624 | -8/Storage | Identified exit to Recycling 1975 | -8/Storage | Discovered new exit (range 19) 2078 | -8/Storage | Entered Factory 2078 | -7/Factory | Accompanied by 9 allies 2078 | -7/Factory | Evolved 2 slots: Utility x2 2221 | -7/Factory | Discovered new exit (range 92) 2716 | -7/Factory | Lost 12 parts (2p5n2u3w) 2825 | -7/Factory | Discovered new exit (range 11) 2831 | -7/Factory | Entered another Factory area 2831 | -6/Factory | Evolved 2 slots: Weapon x2 2869 | -6/Factory | Build established: Mutant 3035 | -6/Factory | Lost 4 parts (2n1u1w) 3062 | -6/Factory | Core integrity fell below 50% 3240 | -6/Factory | Core integrity fell below 20% 3321 | -6/Factory | Identified exit to Garrison 3324 | -6/Factory | Entered Garrison 3350 | -6/Garrison | Destroyed by G-67 Veteran with Plasma Rifle Last Messages --------------- 03250_ Pressure Siphon disabled. 03286_ System corrupted: Matter fused (-9). 03317_ System corrupted: Energy discharge (-75). 03319_ ALERT: Suspicious intruders detected, dispatching Cutter reinforcements to area. 03319_ Slammed into C-17 Slicer. 03319_ Destroyed Reaction Control System. 03319_ C-17 Slicer system corrupted by crushing effect. 03321_ Connecting with Garrison Access... >>Unlock Access door unlocked. 03321_ EXIT=UNLOCKED: GARRISON 03323_ Slammed into C-17 Slicer. 03323_ Destabilizing: System corrupted (+1). 03323_ P-60 Hacker resets C-17 Slicer, system corruption cleaned. LOCATION=GARRISON GOAL=ESCAPE 03334_ Acquired Authchip [R/Combat]. 03337_ EAK%NDOIK%GU&FY ZJDPT=RGRVSRXGW 8MCYV/VT 03337_ Acquired Authchip [R/NC]. Map ----- +----------------------------------------------------+ | ?????????????????????????????????????????????????? | | ?????????????????????????????????????????????????? | | ?????????????????????????????????????????????????? | | ?????????????????????????????????????????????????? | | ?????????????????????????????????????????????????? | | ?????????????????????????????????????????????????? | | ?????????????????????????????????????????????????? | | ?????????????????????????????????????????????????? | | ?????????????????????????????????????????????????? | | ?????????????????????????????????????????????????? | | ?????????????????????????????????????????????????? | | ?????????????????????????????????????????????????? | | ?????????????????????????####????????????????????? | | ????????????????????????? #????????????????????? | | ????????????????????????? #????????????????????? | | ????????????????????????? +????????????????????? | | ????????????????????????? #????????????????????? | | ????????????????????????# ss#????????????????????? | | ????????????????????????# s#????????????????????? | | ????????????????????????# #????????????????????? | | ????????????????????????# #????????????????????? | | ????????????????????????# #????????????????????? | | ????????????????????????# ##"""##### ?????????? | | ????????????????????????# ??????????? | | ????????????????????????# gg ???????????????? | | ????????????????????????#@g #????????????????????? | | ????????????????????????# g #????????????????????? | | ????????????????????????# #############????????? | | ????????????????????????# ##""""""""""#????????? | | ????????????????????????# ##"!! !"""#????????? | | ????????????????????????# ## ""#????????? | | ????????????????????????# ## !"#????????? | | ????????????????????????# !"#????????? | | ????????????????????????# !"#????????? | | ????????????????????????# ## !"#????????? | | ????????????????????????# ## ""#????????? | | ????????????????????????# ##"!!!!!!"""#????????? | | ????????????????????????# ##""""""""""#????????? | | ????????????????????????# #############????????? | | ????????????????????????# #????????????????????? | | ????????????????????????# #????????????????????? | | ????????????????????????# #????????????????????? | | ????????????????????????# #????????????????????? | | ????????????????????????# #????????????????????? | | ????????????????????????# ###??????????????????? | | ????????????????????????# #??????????????????? | | ????????????????????????# #??????????????????? | | ????????????????????????# #??????????????????? | | ????????????????????????#######??????????????????? | | ?????????????????????????????????????????????????? | +----------------------------------------------------+ Best States ------------- Heat Dissipation 59 Energy Generation 23 Energy Capacity 450 Matter Stores 300 Matter Capacity 300 Sight Range 22 Robot Scan Range 15 Terrain Scan Density 85 Weapon Cycling 15 Evasion (%) 62 Authchip Count 3 Item Schematics ----------------- None Robot Schematics ------------------ None Fabricated ------------ Nothing Alien Tech Used ----------------- None Achievements -------------- None Challenges ------------ None Game ------ Seed StormNavigationRedirector Manual? 0 Play Time 00:39:28 Cumulative 9.9 hours Start 2023.07.28 @ 23:55:21 End 2023.07.29 @ 00:35:21 Sessions 1 Manual Loads 0 Difficulty Rogue Special Mode None Game No. 9 Rogue 9 Adventurer 0 Explorer 0 Win Type - Total 0 Types 0/0/0/0/0/0/0/0/0 Lore% 9 Gallery% 17 Achievement% 23 Wizard Run 0 Options --------- ASCII 0 Keyboard 0 Movement Numpad Keybinds 0 Fullscreen 1 Font 18/SmallcapsGlow Map View 76x50 Tactical HUD 1 Map Filters NONE Filters NONE Steam 1 RUN: d88ee7e3-976b-49e9-9401-6a111e8e6fc7